bitfinex-derivatives/quotes_ETHF0:USTF0_20251003
["timestamp","ask_amount","ask_price","bid_price","bid_amount"]
[1759507804918,1.0811,4544.1,4543.5,3.6363]
[1759507805124,0.4567,4544.0,4543.5,1.0679]
[1759507805321,0.4567,4544.0,4543.2,0.00269363]
[1759507805322,1.0811,4543.9,4543.2,0.00269363]
[1759507805620,1.47702,4542.6,4542.0,4.81884206]
[1759507805823,1.3101,4542.6,4542.5,4.2757]
[1759507806027,0.229,4542.6,4542.5,5.12823]
[1759507806320,0.229,4542.7,4542.6,1.0679]
[1759507806724,1.31213308,4542.7,4542.6,1.0707487]
[1759507806923,1.31213308,4542.7,4542.6,0.0028487]
[1759507807126,1.31213308,4542.7,4542.6,1.0707487]
[1759507807127,0.00203308,4542.7,4542.6,1.0707487]
[1759507808320,1.0811,4544.4,4542.7,1.0679]
[1759507808520,0.3958,4544.0,4543.7,3.2078]
[1759507808825,1.0811,4544.1,4544.0,1.0679]
[1759507809127,1.47691,4543.9,4543.7,3.2078]
[1759507809330,1.0811,4543.8,4543.7,3.2078]
[1759507809724,1.0811,4543.8,4543.1,3.2078]
[1759507809920,1.0811,4543.5,4543.2,1.0679]
[1759507810125,1.0811,4543.3,4543.2,1.0679]
[1759507810424,0.229,4543.5,4543.3,0.39586]
[1759507810727,0.0027973,4543.9,4543.8,1.0679]
[1759507811029,0.0027973,4543.9,4543.8,4.2757]
[1759507811030,0.2317973,4543.9,4543.8,4.2757]
[1759507811523,1.7087073,4543.9,4543.3,3.2078]
[1759507811726,1.0811,4543.5,4543.4,1.0679]
[1759507811930,1.0811,4543.8,4543.4,1.0679]
[1759507812128,0.0027973,4543.9,4543.5,0.85243]
[1759507812434,0.229,4543.7,4543.6,4.2757]
[1759507812620,0.98925,4545.2,4543.6,4.2757]
[1759507812621,3.2078,4547.3,4545.6,1.0679]
[1759507812924,0.4567,4547.0,4545.6,1.0679]
[1759507813124,0.4567,4547.0,4546.0,3.2078]
[1759507813325,0.39556,4546.7,4545.6,1.46355]
[1759507813523,0.00164918,4546.7,4546.0,3.2078]
[1759507813728,0.229,4546.6,4546.0,4.7323]
[1759507814124,0.229,4546.6,4545.6,0.00278556]
[1759507814323,0.00164918,4546.7,4545.7,1.0679]
[1759507814527,1.0811,4546.1,4545.7,1.0679]
[1759507814731,1.0811,4546.0,4545.6,0.00278556]
[1759507815035,4.68455,4545.7,4545.6,5.56e-06]
[1759507815422,9.68455,4545.7,4545.6,5.56e-06]
[1759507816432,9.91355,4545.7,4545.6,5.56e-06]
[1759507817032,3.83245,4545.7,4545.6,5.56e-06]
[1759507817227,3.83245,4545.7,4545.6,1.06790556]
[1759507817827,8.83245,4545.7,4545.6,5.56e-06]
[1759507818231,3.83245,4545.7,4545.6,5.56e-06]
[1759507819332,3.83245,4545.7,4545.6,0.07000556]
[1759507819529,4.91355,4545.7,4545.6,5.56e-06]
[1759507820028,9.91355,4545.7,4545.6,5.56e-06]
[1759507820726,9.91355,4545.7,4544.6,1.0679]
[1759507820727,0.39579,4544.1,4544.0,1.0679]
[1759507820928,0.39579,4544.1,4543.5,3.6644]
[1759507820929,0.3958,4544.0,4543.5,3.6644]
[1759507821122,0.3958,4544.0,4543.6,1.0679]
[1759507821332,0.229,4543.9,4543.6,1.0679]
[1759507821524,0.39582,4543.8,4543.6,1.0679]
[1759507821728,0.39582,4543.8,4543.7,1.0679]
[1759507821929,0.62482,4543.8,4543.7,1.0679]
[1759507822328,0.229,4543.8,4543.7,1.0679]
[1759507822829,3.2078,4544.5,4543.8,1.0679]
[1759507823032,0.39578,4544.2,4544.0,0.4566]
[1759507823233,1.0811,4545.1,4544.1,4.2757]
[1759507823433,0.229,4545.0,4544.1,1.0679]
[1759507823732,0.39577,4544.3,4544.1,1.0679]
[1759507823927,0.229,4544.2,4544.1,1.0679]
[1759507825033,0.39575,4544.5,4544.1,1.0679]
[1759507825236,1.0811,4545.1,4544.3,1.0679]
[1759507825439,3.2078,4544.8,4544.3,1.0679]
[1759507825638,0.229,4545.0,4544.5,0.4566]
[1759507825939,3.2078,4545.3,4544.6,1.0679]
[1759507826131,0.39571,4545.0,4544.5,0.4566]
[1759507826327,3.2078,4544.8,4544.2,1.0679]
[1759507826536,3.2078,4544.8,4544.0,0.4566]
[1759507826537,0.39575,4544.6,4544.1,1.0679]
[1759507826738,0.229,4544.7,4544.2,3.2078]
[1759507827035,0.229,4544.7,4544.6,1.0679]
[1759507827232,3.2078,4545.2,4544.6,1.0679]
[1759507827538,0.39572,4545.0,4544.6,1.0679]
[1759507827735,0.39573,4544.8,4544.5,0.4566]
[1759507827930,0.229,4545.1,4544.6,1.0679]
[1759507828137,0.98926,4545.1,4544.6,1.0679]
[1759507828337,0.229,4545.0,4544.5,0.4566]
[1759507828641,0.229,4545.0,4544.6,1.0679]
[1759507828835,0.229,4545.0,4541.0,60.60284]
[1759507828836,0.2284,4544.5,4543.8,1.0679]
[1759507829031,1.97851,4545.2,4544.0,0.4566]
[1759507829032,0.39578,4544.2,4544.0,0.4566]
[1759507829338,0.39576,4544.4,4544.1,1.0679]
[1759507829537,0.229,4544.3,4544.1,1.0679]
[1759507829734,1.0811,4545.1,4544.4,1.0679]
[1759507830035,3.2078,4545.2,4544.6,1.0679]
[1759507830235,0.39573,4544.8,4544.6,1.0679]
[1759507830440,0.229,4544.7,4544.6,1.0679]
[1759507830741,3.2078,4545.2,4544.6,1.0679]
[1759507831038,0.39573,4544.8,4544.6,1.0679]
[1759507831229,0.39574,4544.6,4544.5,1.5245]
[1759507831634,0.229,4544.6,4544.5,1.5245]
[1759507831842,0.39574,4544.7,4544.5,1.5245]
[1759507832038,3.2078,4545.2,4545.0,0.4457]
[1759507832336,0.39566,4545.6,4545.5,1.5036]
[1759507832537,0.62466,4545.6,4545.5,1.5036]
[1759507833637,0.39566,4545.6,4545.5,1.5036]
[1759507834131,0.229,4545.6,4545.5,1.5036]
[1759507834533,3.2078,4545.7,4545.6,1.0433]
[1759507835038,3.4368,4545.7,4545.6,1.0433]
[1759507836342,0.229,4545.7,4545.6,1.0433]
[1759507836641,3.4368,4545.7,4545.6,1.0433]
[1759507836846,0.98917,4545.6,4545.1,1.0433]
[1759507837037,0.3957,4545.2,4545.1,1.0433]
[1759507837241,0.229,4545.2,4545.1,1.0433]
[1759507839543,1.50921,4545.1,4544.7,3.2078]
[1759507839848,0.39573,4544.9,4544.7,3.2078]
[1759507840140,1.50923,4544.9,4544.7,3.2078]
[1759507840345,0.229,4545.0,4544.7,3.2078]
[1759507840541,0.229,4545.0,4544.8,0.39573]
[1759507840737,3.2078,4545.6,4544.7,3.2078]
[1759507840938,3.2078,4545.6,4545.5,0.39567]
[1759507841144,3.2078,4545.6,4545.0,0.4285]
[1759507841145,3.4358,4545.6,4545.4,0.39568]
[1759507841443,3.4358,4545.6,4545.0,0.4285]
[1759507841750,1.1135,4545.5,4545.4,0.39568]
[1759507842144,3.2078,4545.6,4545.5,1.0433]
[1759507842343,3.2078,4545.6,4545.5,1.4718]
[1759507842647,3.4358,4545.6,4545.5,1.4718]
[1759507843136,3.2078,4545.6,4545.5,1.4718]
[1759507843539,3.4358,4545.6,4545.5,1.4718]
[1759507843742,3.2078,4545.6,4545.5,1.4718]
[1759507843940,3.2078,4546.1,4546.0,1.86743]
[1759507844146,0.228,4546.1,4546.0,1.86743]
[1759507844342,1.3415,4546.1,4546.0,0.39563]
[1759507844543,1.3415,4546.1,4546.0,1.0433]
[1759507844946,4.5493,4546.1,4546.0,1.0433]
[1759507845345,4.5493,4546.1,4545.9,0.39563]
[1759507845655,4.5493,4546.1,4545.9,1.43893]
[1759507846450,1.1135,4546.0,4545.9,1.43893]
[1759507846650,3.4358,4546.1,4546.0,0.39563]
[1759507846856,0.4266,4546.0,4545.0,1.4718]
[1759507847058,3.2078,4545.5,4545.4,0.39568]
[1759507847358,3.4358,4545.5,4545.4,1.43898]
[1759507848256,3.2078,4545.5,4545.4,1.0433]
[1759507848455,3.4358,4545.5,4545.4,1.0433]
[1759507849156,3.4358,4545.5,4545.3,0.39569]
[1759507849362,1.1135,4545.4,4545.3,0.39569]
[1759507849765,1.1135,4545.4,4545.3,1.43899]
[1759507849954,3.4358,4545.5,4545.4,1.0433]
[1759507850466,4.5493,4545.5,4545.4,1.0433]
[1759507850663,4.5493,4545.5,4544.7,1.0433]
[1759507850664,1.1135,4545.4,4544.7,1.0433]
[1759507850968,0.228,4545.3,4544.7,1.0433]
[1759507851165,0.228,4545.3,4545.0,0.39571]
[1759507851466,2.83648431,4545.2,4544.5,0.4285]
[1759507851668,2.83648431,4545.2,4545.1,1.0433]
[1759507852060,3.2078,4545.5,4545.3,1.0433]
[1759507852061,2.7952823,4545.4,4545.3,1.0433]
[1759507852262,3.2078,4545.5,4545.4,0.39568]
[1759507852569,3.2078,4545.5,4545.4,1.43898]
[1759507852570,6.23040516,4545.5,4545.4,1.43898]
[1759507852867,6.00240516,4545.5,4545.4,1.43898]
[1759507853364,1.81886516,4545.5,4545.4,6.43898]
[1759507853763,1.81886516,4545.5,4545.4,1.43898]
[1759507855972,1.81886516,4545.5,4545.4,1.0433]
[1759507856369,2.04686516,4545.5,4545.4,1.0433]
[1759507857071,1.81886516,4545.5,4545.4,1.0433]
[1759507857374,1.61443454,4545.5,4545.4,6.0433]
[1759507857574,1.61443454,4545.5,4545.4,6.61777097]
[1759507858071,1.61443454,4545.5,4545.4,1.61777097]
[1759507858566,1.1135,4546.4,4546.2,0.39561]
[1759507858772,0.228,4546.3,4546.2,1.43891]
[1759507858971,3.03788317,4546.3,4546.2,1.43891]
[1759507859169,0.228,4546.3,4546.2,1.43891]
[1759507859364,3.2078,4546.5,4546.3,1.0433]
[1759507859570,1.7371,4546.4,4546.3,1.0433]
[1759507859764,4.15920904,4546.4,4546.3,1.0433]
[1759507860276,1.50912,4546.1,4546.0,1.0433]
[1759507860570,2.9103251,4546.1,4545.7,3.2078]
[1759507860774,2.9103251,4546.1,4546.0,1.86743]
[1759507860969,2.9103251,4546.3,4546.2,0.39561]
[1759507861269,1.1135,4547.1,4546.5,0.82408]
[1759507861469,0.39555,4547.0,4546.6,1.0433]
[1759507861679,0.22964918,4546.7,4546.6,1.0433]
[1759507861973,2.84069068,4546.7,4546.6,1.0433]
[1759507862171,3.06869068,4546.7,4546.6,1.0433]
[1759507862768,2.84069068,4546.7,4546.6,1.0433]
[1759507862970,3.06869068,4546.7,4546.6,1.0433]
[1759507863775,2.38114068,4546.7,4546.6,1.0433]
[1759507863970,4.59736883,4547.5,4546.6,1.0433]
[1759507863971,3.50076883,4547.5,4547.4,1.49381]
[1759507864167,0.29296883,4547.5,4547.4,1.49381]
[1759507864771,0.29521885,4547.5,4547.4,1.49576231]
[1759507865276,0.29521885,4547.5,4547.4,1.10025231]
[1759507865476,0.022,4547.9,4547.4,1.10025231]
[1759507865669,1.1088989,4548.5,4548.4,0.39542]
[1759507865973,0.0122989,4548.5,4548.4,0.84772]
[1759507866377,0.0122989,4548.5,4548.4,0.39542]
[1759507866378,1.5405989,4548.5,4548.4,0.39542]
[1759507866678,1.54234375,4548.5,4548.4,0.39542]
[1759507867073,3.31649754,4548.5,4547.9,0.4523]
[1759507867274,1.0966,4548.4,4548.3,0.39543]
[1759507867476,0.01404375,4548.5,4548.4,0.4523]
[1759507867874,3.60313,4549.5,4549.3,0.39534]
[1759507868072,3.6395,4549.5,4549.3,0.39534]
[1759507868272,2.88314119,4549.4,4549.3,1.34704]
[1759507868473,0.228,4549.6,4549.5,0.39533]
[1759507868675,2.80523147,4549.9,4549.5,0.9517]
[1759507868977,0.00240187,4549.9,4549.5,3.2078]
[1759507869279,2.80763334,4549.9,4549.5,3.60312]
[1759507869472,0.3953,4549.8,4549.0,3.2078]
[1759507869678,0.4317,4549.5,4549.2,0.39535]
[1759507869875,1.3246,4549.4,4549.3,0.39534]
[1759507870175,2.90971009,4549.4,4549.2,0.39535]
[1759507870380,0.00240187,4549.9,4549.8,0.3953]
[1759507870682,0.00240187,4549.9,4549.8,1.347]
[1759507870976,1.0966,4550.6,4550.5,1.34694]
[1759507871178,3.2078,4551.3,4549.9,0.98823]
[1759507871179,0.39522,4550.8,4550.1,0.228]
[1759507871370,3.27253118,4550.5,4550.0,3.2078]
[1759507871572,3.27253118,4550.5,4549.7,0.228]
[1759507871573,1.0966,4549.9,4549.7,0.228]
[1759507871777,1.0966,4550.4,4549.8,0.9517]
[1759507871976,2.91789907,4549.8,4549.7,0.228]
[1759507872171,1.0966,4549.4,4548.9,3.2078]
[1759507872478,2.91789907,4549.3,4548.9,3.4358]
[1759507872680,2.91789907,4549.3,4549.2,0.9517]
[1759507872875,2.90895497,4549.4,4549.3,1.34704]
[1759507873068,1.0966,4549.7,4549.5,0.39533]
[1759507873272,1.0966,4549.4,4549.1,0.39536]
[1759507873471,3.30429497,4549.4,4548.9,3.4358]
[1759507873771,3.34065497,4549.5,4548.9,3.4358]
[1759507873772,0.4317,4549.5,4549.2,0.39535]
[1759507873972,2.87345474,4549.3,4549.2,0.39535]
[1759507874173,1.0966,4549.3,4549.2,0.39535]
[1759507874373,1.0966,4549.3,4549.0,0.9517]
[1759507874374,1.0966,4549.9,4549.1,0.9517]
[1759507874569,0.228,4550.3,4550.1,0.39527]
[1759507874780,1.0966,4550.3,4550.2,0.39526]
[1759507874971,3.97884914,4550.3,4550.2,0.39526]
[1759507875873,2.88224914,4550.3,4550.2,1.34696]
[1759507876073,2.88224914,4550.3,4549.9,4.3875]
[1759507876276,1.3246,4550.2,4549.4,4.1595]
[1759507876476,0.3953,4549.8,4549.2,0.228]
[1759507876674,1.0966,4551.1,4550.7,2.1556676]
[1759507876874,0.4317,4551.5,4550.9,3.2078]
[1759507877069,0.4317,4551.5,4550.3,0.0035]
[1759507877070,0.4317,4551.5,4551.2,3.2078]
[1759507877470,0.181,4551.9,4551.1,0.2053]
[1759507877679,0.4317,4552.0,4551.3,0.39516]
[1759507877876,0.4341726,4552.0,4551.9,0.39512]
[1759507878081,0.4341726,4552.0,4551.3,0.74801125]
[1759507878272,0.4341726,4552.0,4551.7,0.39513]
[1759507878478,0.0024726,4552.0,4551.8,0.2053]
[1759507878679,0.0024726,4552.0,4551.9,0.2053]
[1759507878983,0.0024726,4552.0,4551.6,3.4358]
[1759507878984,0.4341726,4552.0,4551.6,3.2078]
[1759507879176,0.4341726,4552.0,4551.3,0.00223285]
[1759507879177,1.0966,4551.4,4551.3,0.00223285]
[1759507879577,3.99207263,4551.4,4551.3,0.00223285]
[1759507879879,4.22207263,4551.4,4551.3,0.00223285]
[1759507880192,4.22207263,4551.4,4550.1,3.2078]
[1759507880193,0.4317,4550.5,4550.1,3.2078]
[1759507880375,1.0966,4550.3,4550.1,3.2078]
[1759507880575,1.0966,4550.3,4549.0,0.39536]
[1759507880576,0.39529,4550.0,4549.6,3.2078]
[1759507880776,1.0966,4549.9,4549.6,3.2078]
[1759507881084,2.84537463,4549.9,4549.6,3.20977128]
[1759507881288,0.39529,4549.9,4549.6,3.20977128]
[1759507881784,1.0966,4549.7,4549.6,0.00197128]
[1759507882081,3.95075094,4549.7,4549.6,0.00197128]
[1759507882673,1.0966,4548.9,4548.6,3.42307128]
[1759507882876,0.4317,4549.0,4548.6,3.42307128]
[1759507883282,1.0966,4548.8,4548.1,3.2078]
[1759507883481,2.90378006,4548.9,4548.1,3.4388]
[1759507883482,0.4317,4548.5,4548.1,3.4388]
[1759507883678,0.00263291,4548.5,4548.2,0.2053]
[1759507883882,3.2078,4549.4,4549.2,0.39534]
[1759507884082,1.0966,4549.9,4549.7,0.39531]
[1759507884281,1.0966,4550.4,4549.7,3.2078]
[1759507884486,0.4317,4550.0,4549.7,3.2078]
[1759507884689,0.4317,4549.5,4549.4,0.231]
[1759507884884,1.53071879,4549.5,4549.4,0.231]
[1759507885084,0.00241879,4549.5,4549.4,0.4363]
[1759507885281,0.4317,4551.0,4550.2,0.2029]
[1759507885477,1.0966,4550.9,4550.8,0.39521]
[1759507885678,3.96350927,4550.9,4550.2,0.4339]
[1759507885884,3.96350927,4550.9,4550.2,0.231]
[1759507886086,1.0966,4550.8,4550.7,0.39521]
[1759507886281,1.09855884,4550.8,4550.7,0.39521]
[1759507886478,1.0966,4550.7,4550.5,0.39524]
[1759507886681,1.09855884,4550.8,4550.7,0.39522]
[1759507887286,0.00195884,4550.8,4550.7,0.39522]
[1759507887481,1.13835884,4550.8,4550.7,0.39522]
[1759507887688,0.00195884,4550.8,4550.7,0.39522]
[1759507887888,1.13835884,4550.8,4550.7,0.39522]
[1759507889690,0.00195884,4550.8,4550.2,0.231]
[1759507889887,0.00195884,4550.8,4550.7,0.62952]
[1759507890379,0.00195884,4550.8,4550.7,5.62952]
[1759507890784,0.4317,4552.0,4551.9,0.39512]
[1759507891084,0.4171,4551.5,4551.4,3.83396]
[1759507891284,1.5535,4551.5,4551.4,3.4388]
[1759507891480,1.5535,4551.5,4551.0,0.39519]
[1759507891481,1.1364,4551.4,4551.0,0.39519]
[1759507891692,1.5535,4551.0,4550.9,0.231]
[1759507891887,1.5535,4551.0,4550.9,0.62796599]
[1759507892188,1.5535,4551.0,4550.9,0.39696599]
[1759507892592,4.42900641,4551.0,4550.9,0.00176599]
[1759507892887,4.42900641,4551.0,4550.4,3.2078]
[1759507893087,1.13393376,4551.4,4550.7,1.21776]
[1759507893287,1.13393376,4551.4,4551.3,3.60297]
[1759507893686,0.00163376,4551.4,4551.3,3.83267]
[1759507893885,0.00163376,4551.4,4551.3,3.60540347]
[1759507894086,1.1323,4552.4,4551.3,9.01440444]
[1759507894293,1.1323,4552.4,4552.3,3.2078]
[1759507895290,1.13432712,4552.4,4552.3,3.2078]
[1759507895684,3.93032393,4552.4,4552.3,3.2078]
[1759507896398,1.1323,4551.9,4551.8,3.2078]
[1759507896696,3.98231213,4551.9,4551.8,3.2078]
[1759507897192,1.1323,4551.4,4551.3,3.21023347]
[1759507897393,3.98231213,4551.9,4551.3,3.21023347]
[1759507897694,1.1323,4551.9,4551.8,3.2078]
[1759507897897,1.1323,4551.4,4551.3,0.00243347]
[1759507898089,1.1323,4551.4,4551.3,3.44023347]
[1759507898288,0.4432,4552.0,4551.4,1.047]
[1759507898489,0.4432,4552.0,4551.9,3.2078]
[1759507898891,3.27444412,4552.0,4551.9,3.2078]
[1759507899295,0.00202712,4552.4,4551.9,4.2548]
[1759507899598,0.00202712,4552.4,4552.3,1.44208]
[1759507899790,0.4432,4554.0,4552.4,1.047]
[1759507899995,0.4432,4554.0,4552.8,4.64984]
[1759507900191,1.1323,4553.2,4552.8,4.87984]
[1759507900597,4.00676371,4552.9,4552.8,3.60284]
[1759507900797,4.00941338,4552.9,4552.8,3.60284]
[1759507901001,9.00941338,4552.9,4552.8,3.2078]
[1759507901191,0.4432,4552.0,4551.9,3.60292]
[1759507901492,3.2078,4553.1,4551.9,3.60292]
[1759507901493,0.4432,4555.0,4554.9,0.39486]
[1759507901694,0.4432,4554.5,4554.3,0.3949]
[1759507901894,0.4432,4554.5,4554.0,3.2078]
[1759507902195,0.4432,4553.5,4553.4,3.2078]
[1759507902398,0.44593499,4553.5,4553.4,0.00175745]
[1759507902592,3.23808932,4553.5,4553.4,0.00175745]
[1759507903087,3.46808932,4553.5,4553.4,3.2078]
[1759507903496,4.37038932,4553.5,4553.4,3.2078]
[1759507903696,1.57823499,4553.5,4553.4,3.2078]
[1759507904096,0.00273499,4553.5,4553.4,3.20992094]
[1759507904304,4.99e-06,4553.5,4553.4,8.25122094]
[1759507904593,1.1323,4554.1,4553.9,0.39494]
[1759507904594,0.98375499,4554.1,4553.9,0.39494]
[1759507904806,0.98375499,4554.1,4554.0,3.2078]
[1759507905599,3.89628554,4554.1,4554.0,3.2078]
[1759507905791,0.4432,4554.0,4553.5,3.2078]
[1759507905997,0.4432,4553.5,4553.4,0.39710094]
[1759507906193,0.6732,4553.5,4553.4,0.39710094]
[1759507906498,0.6732,4553.5,4553.4,0.00212094]
[1759507906499,2.83855358,4553.5,4553.4,0.00212094]
[1759507906697,2.83855358,4553.5,4553.4,1.44411094]
[1759507906894,1.1323,4553.9,4553.5,1.047]
[1759507907095,0.00157657,4554.1,4554.0,0.39493]
[1759507907296,0.00157657,4554.1,4554.0,1.44193]
[1759507907499,1.06480657,4555.0,4554.9,0.39486]
[1759507907800,3.8746088,4555.0,4554.9,0.39486]
[1759507908201,3.8746088,4555.0,4554.6,3.2078]
[1759507908391,2.81204941,4555.0,4554.8,0.39486]
[1759507908898,3.04204941,4555.0,4554.0,0.23]
[1759507909196,0.39488,4554.7,4553.9,3.2078]
[1759507909402,1.5755,4554.5,4554.4,0.3949]
[1759507909596,1.1323,4554.4,4554.3,0.3949]
[1759507910001,3.95604188,4554.4,4554.3,0.3949]
[1759507910192,3.95604188,4554.4,4553.9,3.2078]
[1759507910193,1.1323,4554.3,4553.9,3.2078]
[1759507910403,1.3623,4554.3,4554.2,0.39491]
[1759507910798,4.27037171,4554.3,4554.2,0.39491]
[1759507911098,3.53298171,4554.3,4553.4,3.43992094]
[1759507911294,1.1323,4553.9,4553.8,0.39495]
[1759507911692,3.2078,4554.2,4554.1,0.39493]
[1759507911895,2.91036072,4553.9,4553.8,1.44195]
[1759507912097,0.229,4553.9,4553.8,1.44195]
[1759507912396,1.1323,4554.4,4554.3,0.39491]
[1759507912594,1.3623,4554.4,4554.2,0.39491]
[1759507912796,1.1323,4554.3,4554.2,0.39491]
[1759507912998,1.3613,4554.3,4554.2,0.39491]
[1759507913194,1.1323,4554.2,4553.4,3.20992094]
[1759507913502,2.79931371,4554.1,4554.0,0.39493]
[1759507913704,4.16061371,4554.1,4554.0,0.39493]
[1759507913997,1.1323,4554.1,4554.0,0.39493]
[1759507914198,1.5755,4554.5,4553.9,3.2078]
[1759507914399,0.229,4554.4,4554.3,0.39491]
[1759507914604,3.10775784,4554.4,4554.0,1.047]
[1759507914797,2.84168321,4554.9,4554.4,0.98724]
[1759507915099,1.1323,4554.7,4554.5,0.39489]
[1759507915301,0.229,4554.8,4554.7,0.39487]
[1759507915499,1.3613,4554.8,4554.7,0.39487]
[1759507915805,1.1323,4554.6,4554.3,1.047]
[1759507915997,1.1323,4554.6,4554.5,1.44189]
[1759507916197,1.1323,4554.6,4554.5,0.39489]
[1759507916396,4.19725632,4554.6,4554.5,0.39489]
[1759507916603,3.96825632,4554.6,4554.5,0.39489]
[1759507917104,2.83595632,4554.6,4554.5,1.44189]
[1759507917306,3.96825632,4554.6,4554.5,0.39489]
[1759507917499,1.1323,4554.6,4554.5,0.39489]
[1759507917700,3.97668691,4554.6,4554.5,0.39489]
[1759507917999,3.97668691,4554.6,4554.5,1.44189]
[1759507918200,3.07338691,4554.6,4554.5,1.44189]
[1759507918399,2.26975691,4554.6,4554.5,1.44189]
[1759507918594,1.13454718,4555.0,4554.9,1.44186]
[1759507918800,0.23124718,4555.0,4554.9,1.44186]
[1759507918998,1.36354718,4555.0,4554.9,0.39486]
[1759507919401,1.1323,4554.9,4554.8,0.39487]
[1759507919999,1.1323,4554.8,4553.9,5.24223]
[1759507920199,1.1323,4554.6,4553.9,4.19524]
[1759507920404,2.82065276,4554.7,4554.6,1.047]
[1759507920604,0.229,4554.7,4554.6,1.047]
[1759507920799,0.00224718,4555.0,4554.6,1.047]
[1759507921007,1.57774718,4555.0,4554.9,0.39489]
[1759507921206,1.80674718,4555.0,4554.9,0.39489]
[1759507921403,0.00224718,4555.0,4554.9,1.44189]
[1759507921704,0.22900718,4555.0,4554.9,1.44189]
[1759507921910,7.18e-06,4555.0,4554.9,0.39489]
[1759507922910,7.18e-06,4555.0,4554.9,5.39489]
[1759507923204,7.18e-06,4555.0,4554.9,5.62389]
[1759507923904,0.39472,4556.9,4554.9,5.62389]
[1759507923905,1.0732,4556.4,4556.1,1.1162]
[1759507924106,3.2078,4556.7,4556.6,0.39474]
[1759507924403,2.81113732,4556.6,4555.6,3.2078]
[1759507924607,0.4664,4556.5,4556.3,0.39476]
[1759507924802,1.0732,4556.4,4556.3,0.39476]
[1759507925108,1.0732,4556.4,4556.3,0.39739189]
[1759507925504,0.00222264,4556.5,4556.4,1.1162]
[1759507927406,3.2078,4557.2,4556.5,0.98688]
[1759507927614,3.2078,4557.2,4557.0,0.39471]
[1759507927909,3.2078,4557.2,4556.7,0.98684]
[1759507927910,1.0732,4557.5,4557.4,0.39467]
[1759507928213,1.5396,4557.5,4557.4,0.39467]
[1759507928414,1.77069303,4557.5,4557.4,0.39467]
[1759507928607,1.77069303,4557.5,4556.1,3.2078]
[1759507928608,1.0732,4556.4,4556.1,3.2078]
[1759507928908,1.0732,4556.4,4555.5,0.57047293]
[1759507928909,4.13813091,4556.4,4555.5,0.57047293]
[1759507929207,1.0732,4555.9,4555.3,0.57047293]
[1759507929400,1.0732,4555.7,4555.6,0.39482]
[1759507929803,1.0732,4555.7,4555.2,0.57047293]
[1759507929804,1.46805,4555.3,4555.2,0.57047293]
[1759507930005,1.0732,4555.2,4555.1,0.57047293]
[1759507930302,1.0732,4555.9,4555.8,0.39481]
[1759507930504,1.3022,4555.9,4555.8,0.39481]
[1759507930707,4.19879728,4555.9,4555.8,0.39481]
[1759507931009,4.19879728,4555.9,4555.7,0.39482]
[1759507931213,3.96979728,4555.9,4555.7,0.39482]
[1759507931510,1.5396,4555.0,4554.9,0.39725766]
[1759507931714,1.7686,4555.0,4554.9,3.60505766]
[1759507931908,4.38902411,4555.0,4554.9,3.60505766]
[1759507932212,4.38902411,4555.0,4554.9,0.39725766]
[1759507932412,4.15162411,4555.0,4554.9,0.39725766]
[1759507932610,4.38902411,4555.0,4554.9,0.39725766]
[1759507932808,4.61802411,4555.0,4554.9,0.39725766]
[1759507933124,4.61802411,4555.0,4554.9,0.00236766]
[1759507933414,1.5396,4554.5,4554.4,0.39493]
[1759507933605,1.7686,4554.5,4554.4,0.39493]
[1759507933905,0.4664,4554.0,4553.3,5.88103626]
[1759507934103,1.5396,4553.5,4553.4,0.39502]
[1759507934310,1.77026005,4553.5,4553.4,0.39779517]
[1759507934507,1.07486005,4553.5,4553.4,1.51399517]
[1759507934814,0.00166005,4553.5,4553.4,6.51399517]
[1759507935010,0.86124,4555.5,4554.9,0.39489]
[1759507935011,3.2078,4555.4,4554.9,0.39489]
[1759507935313,2.80609297,4554.9,4554.8,0.39489]
[1759507935521,2.57497297,4554.9,4554.8,4.71889]
[1759507935707,2.57497297,4554.9,4554.8,1.51109]
[1759507935708,2.57597297,4554.9,4554.8,1.51109]
[1759507935913,2.57597297,4554.9,4553.9,0.56946626]
[1759507935914,0.4664,4554.0,4553.9,0.56946626]
[1759507936109,0.4664,4553.5,4553.4,0.00277517]
[1759507936311,0.39502,4553.4,4553.3,3.2078]
[1759507936613,0.39508,4552.8,4552.0,3.2078]
[1759507936809,0.231,4552.7,4552.0,3.2078]
[1759507937006,1.0732,4552.6,4552.0,3.2078]
[1759507937212,2.877803,4552.9,4552.5,3.60289]
[1759507937409,0.4664,4554.5,4552.6,1.1162]
[1759507937614,1.0732,4553.9,4553.8,0.39498]
[1759507937806,4.1193502,4553.9,4553.8,0.39498]
[1759507938609,3.0461502,4553.9,4553.8,1.51118]
[1759507938815,3.0461502,4553.9,4553.8,0.39498]
[1759507939116,3.0461502,4553.9,4553.3,1.1162]
[1759507939317,1.0732,4553.8,4552.9,4.324]
[1759507939707,3.0461502,4553.9,4552.6,0.232]
[1759507939708,2.82520296,4553.7,4553.5,0.39501]
[1759507939908,1.3052,4553.6,4553.5,0.39501]
[1759507940215,4.10069689,4553.6,4553.5,0.39501]
[1759507940413,2.48177689,4553.6,4553.5,1.51121]
[1759507940713,0.4664,4554.5,4554.4,0.39493]
[1759507940916,1.7716,4554.5,4553.6,1.1162]
[1759507941113,1.7716,4554.5,4553.8,0.39499]
[1759507941114,1.0732,4553.9,4553.8,0.39499]
[1759507941415,1.0732,4553.9,4553.0,2.78484]
[1759507941416,0.232,4553.9,4553.0,1.3482]
[1759507941619,1.0732,4553.3,4553.1,0.39504]
[1759507941815,2.82725176,4553.9,4553.0,1.1162]
[1759507942009,0.232,4553.9,4553.8,1.1162]
[1759507942215,1.0732,4553.8,4553.7,0.39499]
[1759507942721,3.96868653,4553.8,4553.7,0.39499]
[1759507943216,4.20068653,4553.8,4553.7,0.39499]